Cogmind - Beta 14 @@@ ROGUE MODE // 2025.01.14 @ 07:57:23 Player: SuperSwiss Result: Self-destructed Performance ------------- Evolutions (1) 500 Regions Visited (4) 800 Robots Destroyed (74) 370 Value Destroyed (1705) 1705 Prototype IDs (2) 40 Alien Tech Used (0) 0 Bonus (93) 93 TOTAL SCORE: 3508 Bonus ------- High Alert Combat Kills 93 Cogmind --------- Core Integrity 196/400 Matter 300/300 Energy 160/160 System Corruption 2% Temperature Cool (0) Movement Rolling (115) Ox2 Location -9/Exiles Parts ------- > --- POWER (1) -------- Light Nuclear Core > --- PROPULSION (2) --- Wheel Armored Wheel > --- UTILITY (3) ------ High-capacity Storage Unit Transport Network Coupler Light Armor Plating > --- WEAPON (3) ------- Small Laser Heavy Assault Rifle Heavy Assault Rifle > --- INVENTORY (20) --- Light Nuclear Core Improved Treads Wheel Wheel Improved Heat Sink Medium Matter Pod (100) Improved Sensor Array Signal Interpreter Terrain Scanner Power Shielding Light Armor Plating Light Armor Plating Medium Armor Plating Rocket Launcher Mini Grenade Launcher Mini Grenade Launcher Mini Grenade Launcher Mining Laser Plasma Cutter Peak State ------------ > --- POWER ------------ Improved Ion Engine > --- PROPULSION ------- Wheel Armored Wheel > --- UTILITY ---------- Improved Heat Sink High-capacity Storage Unit Transport Network Coupler > --- WEAPON ----------- Heavy Assault Rifle Autogun Improved Assault Rifle > --- INVENTORY -------- Ion Engine Improved Treads Wheel Wheel Wheel Medium Matter Pod Improved Sensor Array Signal Interpreter Terrain Scanner Light Armor Plating Light Armor Plating Grenade Launcher Mini Grenade Launcher Mini Grenade Launcher Mining Laser Plasma Cutter [Rating: 19] Favorites ----------- Power Improved Ion Engine Engine Improved Ion Engine Power Core Light Nuclear Core Propulsion Wheel Treads Light Treads Leg Aluminum Leg Wheel Wheel Utility Transport Network Coupler Device Improved Heat Sink Storage High-capacity Storage Unit Processor Transport Network Coupler Protection Light Armor Plating Weapon Heavy Assault Rifle Energy Gun Particle Gun Ballistic Gun Heavy Assault Rifle Launcher Grenade Launcher Special Weapon Mining Laser Build | -11 -10 -9 -9 -9 ------- Run | Yrd Mat Mat Min Exi Slots Evolved 2 | . . 2 . . Power . | . . . . . Propulsion . | . . . . . Utility 1 | . . 1 . . Weapon 1 | . . 1 . . Parts Attached 59 | 8 22 26 3 . Power 4 | 1 1 1 1 . Engine 3 | 1 1 1 . . Core 1 | . . . 1 . Reactor . | . . . . . Propulsion 25 | 4 11 10 . . Treads 5 | 1 2 2 . . Leg 3 | . 3 . . . Wheel 17 | 3 6 8 . . Hover . | . . . . . Flight . | . . . . . Utility 7 | 1 3 2 1 . Device 1 | . . 1 . . Storage 3 | 1 2 . . . Processor 1 | . 1 . . . Hackware . | . . . . . Protection 2 | . . 1 1 . Artifact . | . . . . . Weapon 23 | 2 7 13 1 . Energy Gun 9 | . 4 4 1 . Energy Cannon . | . . . . . Ballistic Gun 10 | 2 . 8 . . Ballistic Cannon . | . . . . . Launcher 1 | . . 1 . . Special Weapon 3 | . 3 . . . Impact Weapon . | . . . . . Slashing Weapon . | . . . . . Piercing Weapon . | . . . . . Special Melee Weapon . | . . . . . Unidentified Prototypes 2 | . . 2 . . Parts Lost 16 | . 7 7 2 . Power 1 | . 1 . . . Propulsion 7 | . 4 3 . . Utility 2 | . . 1 1 . Weapon 6 | . 2 3 1 . Highest Loss Streak 3 | . 3 2 1 . To Critical Strikes . | . . . . . Average Slot Usage (%) 97 | . 94 96 99 100 Engine 10 | . 13 11 9 . Core 1 | . . . 1 11 Treads 1 | . 4 . . . Wheel 20 | . 19 20 22 22 Device 3 | . . 9 . . Storage 11 | . 14 11 11 11 Processor 11 | . 11 11 11 11 Protection 4 | . . 1 11 11 Energy Gun 8 | . 12 8 2 11 Ballistic Gun 21 | . 12 22 30 22 Peak Build Rating 19 | 6 9 19 18 17 Average Rating 13 | 4 7 16 17 17 On Entrance 9 | . 6 8 17 17 Naked Turns . | . . . . . Heaviest Build 59 | 14 50 59 59 55 Greatest Support 32 | 26 32 22 22 22 Greatest Overweight (x) 5 | . 4 5 2 2 Average Overweight (x) 1 | . 1 2 2 2 Largest Inventory Capacity 20 | 8 20 20 20 20 Average Capacity 19 | 6 17 20 20 20 Most Carried 20 | 5 10 17 20 19 Average Carried 13 | 2 7 13 18 19 Final Capacity 20 | 8 20 20 20 20 Final Carried 19 | 2 10 15 19 19 Class Distribution -------------------- 36% | Scavenger-Tank 27% | Scavenger-Skirmisher 19% | Scavenger-Mutant 15% | Mutant Dominant Class ---------------- Scavenger-Mutant | -10/Materials Scavenger-Skirmisher | -9/Materials Scavenger-Tank | -9/Mines Scavenger-Tank | -9/Exiles Resources | -11 -10 -9 -9 -9 ----------- Run | Yrd Mat Mat Min Exi Matter Collected 1661 | 220 486 757 198 . Remotely . | . . . . . Salvage Created 2727 | . 835 1564 328 . Parts 171 | . 57 99 15 . Haulers Intercepted 8 | . 2 6 . . Recyclers Shooed 5 | . 5 . . . Parts Field Recycled . | . . . . . Retrieved Matter . | . . . . . Parts Self-Destructed . | . . . . . Prevented . | . . . . . Kills | -11 -10 -9 -9 -9 ------- Run | Yrd Mat Mat Min Exi Combat Hostiles Destroyed 54 | . 16 31 7 . Guns 53 | . 15 31 7 . Cannons 1 | . 1 . . . Classes Destroyed 11 | . 7 3 1 . Worker 4 | . 3 1 . . Builder 2 | . . 2 . . Tunneler 1 | . . 1 . . Hauler 8 | . 2 6 . . Recycler 3 | . 2 1 . . Operator 1 | . 1 . . . Watcher 1 | . 1 . . . Swarmer 17 | . 6 11 . . Grunt 27 | . 10 11 6 . Duelist 1 | . . . 1 . Sentry 9 | . . 9 . . Best Kill Streak 7 | . 7 6 3 . Combat Bots Only 6 | . 5 6 3 . Max Kills in Single Turn 2 | . 1 2 1 . Gunslinging 1 | . . 1 . . Exploded . | . . . . . Melee . | . . . . . Uniques/NPCs Destroyed . | . . . . . Combat | -11 -10 -9 -9 -9 -------- Run | Yrd Mat Mat Min Exi Hostile Shots Fired 231 | . 89 106 36 . Missed 67 | . 32 30 5 . Damage Taken 2109 | . 675 997 437 . Core 301 | . 97 158 46 . Absorbed by Shields . | . . . . . Regen/Repaired (Parts) 70 | . . 70 . . Core Remaining (%) 80 | 100 61 . . . Volleys Fired 179 | . 72 88 19 . Largest 3 | . 2 3 3 . Hottest 150 | . 150 135 69 . Shots Fired 432 | . 137 242 53 . Gun 425 | . 130 242 53 . Cannon . | . . . . . Launcher . | . . . . . Special 7 | . 7 . . . Kinetic 302 | . 84 165 53 . Thermal 130 | . 53 77 . . Explosive . | . . . . . Electromagnetic . | . . . . . Robot Hit Streak 20 | . 7 20 14 . Robot Miss Streak 4 | . 4 4 4 . Penetration Max . | . . . . . Secondary Targets 8 | . 1 5 2 . Max Gunslinging Chain 1 | . 1 1 1 . Shots Hit Robots 281 | . 83 161 37 . Core Hits 116 | . 41 60 15 . Critical Kills . | . . . . . Critical Parts Destroyed 1 | . . 1 . . Critical Strikes 5 | . 2 3 . . Burn 4 | . 2 2 . . Destroy 1 | . . 1 . . Melee Attacks . | . . . . . Impact . | . . . . . Slashing . | . . . . . Piercing . | . . . . . Sneak Attacks . | . . . . . Combat Hostiles . | . . . . . Follow-up Attacks . | . . . . . Damage Inflicted 4014 | . 1134 2311 569 . Guns 3966 | . 1086 2311 569 . Cannons . | . . . . . Explosions . | . . . . . Melee . | . . . . . Ramming . | . . . . . Kinetic 2724 | . 677 1478 569 . Thermal 1290 | . 457 833 . . Explosive . | . . . . . Electromagnetic . | . . . . . Impact . | . . . . . Slashing . | . . . . . Piercing . | . . . . . Highest Corruption 2 | . . 2 2 2 Average Corruption 2 | . . 2 2 2 Corruption Purged . | . . . . . Corruption Blocked . | . . . . . Effects 28 | . . 8 15 5 Message Errors 8 | . . 2 2 4 Matter Fused 3 | . . 2 1 . Heat Flow Errors 1 | . . . 1 . Energy Discharges 5 | . . 1 4 . Parts Rejected 1 | . . 1 . . Data Loss (minor) 4 | . . 1 3 . Data Loss (major) 2 | . . . 1 1 Misfires 2 | . . . 2 . Alerts 1 | . . . 1 . Weapon Failures 1 | . . 1 . . Overload Shots . | . . . . . Overflow Damage . | . . . . . Projectiles . | . . . . . Explosions . | . . . . . Melee . | . . . . . Knockbacks . | . . . . . Impact . | . . . . . Kinetic . | . . . . . Secondary . | . . . . . Self-Inflicted Damage . | . . . . . Shots . | . . . . . Rammed . | . . . . . Targets Rammed . | . . . . . Kicked . | . . . . . Crushed . | . . . . . Highest Temperature 270 | . 270 105 262 . Average Temperature 60 | . 75 31 71 . Received Heat Transfer 951 | . 381 345 225 . Effects 2 | . 2 . . . Interference 2 | . 2 . . . Siege Activations . | . . . . . Robots Corrupted . | . . . . . Combat Hostiles . | . . . . . Parts Fried . | . . . . . Impact Corruptions . | . . . . . Robots Melted . | . . . . . Combat Hostiles . | . . . . . Parts Melted 3 | . 1 2 . . Heat Transferred 3578 | . 1321 2257 . . Parts Sabotaged . | . . . . . Parts Stolen . | . . . . . Parts Stripped . | . . . . . Power Chain Reactions . | . . . . . Alert | -11 -10 -9 -9 -9 ------- Run | Yrd Mat Mat Min Exi Peak Influence 671 | . 260 671 253 . Initial 223 | . . 86 223 . Average 231 | . 120 380 158 . Maximum Alert Level 2 | . 1 2 1 . Low Security (%) 49 | 100 83 15 54 . Level 1 32 | . 16 37 45 . Level 2 18 | . . 46 . . Level 3 . | . . . . . Level 4 . | . . . . . Level 5 . | . . . . . High Security . | . . . . . Max Security . | . . . . . Squads Dispatched 4 | . 3 1 . . Investigation 1 | . 1 . . . Extermination . | . . . . . Reinforcement 3 | . 2 1 . . Assault . | . . . . . Garrison . | . . . . . Intercept . | . . . . . Searches Triggered . | . . . . . Construction Impeded 1 | . . 1 . . Haulers Reinforced . | . . . . . Active Scanning Responses . | . . . . . Cargo Convoy Interrupts . | . . . . . Stealth | -11 -10 -9 -9 -9 --------- Run | Yrd Mat Mat Min Exi Distress Signals 8 | . 4 4 . . Communications Jammed . | . . . . . Distress Signals . | . . . . . Times Spotted 78 | . 30 40 8 . Peak Tracking Total 6 | . 5 6 3 . Tactical Retreats 5 | . 3 2 . . Traps | -11 -10 -9 -9 -9 ------- Run | Yrd Mat Mat Min Exi Traps Triggered 4 | . 1 3 . . Indirectly . | . . . . . Trap Hack Attempts . | . . . . . Triggered . | . . . . . Disarmed . | . . . . . Reprogrammed . | . . . . . Reused . | . . . . . Traps Extracted . | . . . . . Installed . | . . . . . Triggered . | . . . . . Machines | -11 -10 -9 -9 -9 ---------- Run | Yrd Mat Mat Min Exi Machines Disabled . | . . . . . Max in Single Turn . | . . . . . Machines Repaired . | . . . . . Machines Dismantled . | . . . . . Machines Sabotaged . | . . . . . Overloaded Fab Kills . | . . . . . Hacking | -11 -10 -9 -9 -9 --------- Run | Yrd Mat Mat Min Exi Machines Accessed 17 | . 8 5 . 4 Terminals 10 | . 6 4 . . Fabricators . | . . . . . Repair Stations 1 | . . 1 . . Recycling Units 2 | . 2 . . . Scanalyzers . | . . . . . Garrison Access . | . . . . . Total Hacks 25 | . 13 8 . 4 Successful 16 | . 8 4 . 4 Failed 9 | . 5 4 . . Catastrophic . | . . . . . Database Lockouts . | . . . . . Manual 17 | . 11 6 . . Terminals 17 | . 11 6 . . Fabricators . | . . . . . Repair Stations 2 | . . 2 . . Recycling Units 2 | . 2 . . . Scanalyzers . | . . . . . Garrison Access . | . . . . . Terminal Hacks 5 | . 1 . . 4 Record 4 | . . . . 4 Recall Reinforcements 1 | . 1 . . . Fabricator Hacks . | . . . . . Repair Station Hacks 2 | . . 2 . . Scan Component 1 | . . 1 . . Repair 1 | . . 1 . . Recycling Unit Hacks 2 | . 2 . . . Report Inventory 2 | . 2 . . . Scanalyzer . | . . . . . Garrison Access Hacks . | . . . . . Unauthorized Hacks 7 | . 5 2 . . Terminals 7 | . 5 2 . . Botnet 6 | . 4 2 . . Disrupt 1 | . 1 . . . Fabricators . | . . . . . Repair Stations . | . . . . . Recycling Units . | . . . . . Scanalyzers . | . . . . . Garrison Access . | . . . . . Data Cores Recovered 1 | . 1 . . . Used . | . . . . . Hacking Detections 5 | . 2 3 . . Full Trace Events 1 | . . 1 . . Feedback Events . | . . . . . Feedback Blocked . | . . . . . Robot Schematics Acquired . | . . . . . Robots Built . | . . . . . Authchips . | . . . . . Time . | . . . . . Total Robot Build Rating . | . . . . . Part Schematics Acquired . | . . . . . Parts Built . | . . . . . Authchips . | . . . . . Time . | . . . . . Total Part Build Rating . | . . . . . Parts Repaired 1 | . . 1 . . Time 32 | . . 32 . . Parts Recycled . | . . . . . Recycled Matter . | . . . . . Retrieved Matter . | . . . . . Retrieved Components . | . . . . . Parts Scanalyzed . | . . . . . Part Schematics Acquired . | . . . . . Parts Damaged . | . . . . . Bothacking | -11 -10 -9 -9 -9 ------------ Run | Yrd Mat Mat Min Exi Used RIF Installer . | . . . . . Robots Hacked . | . . . . . Non-combat . | . . . . . Combat . | . . . . . Robot Hacks Applied . | . . . . . Relay Couplers Released . | . . . . . Fabnet Peak Effective % . | . . . . . Robots Rewired . | . . . . . Allies Hacked . | . . . . . Hacks Repelled . | . . . . . Allies | -11 -10 -9 -9 -9 -------- Run | Yrd Mat Mat Min Exi Total Allies . | . . . . . Largest Group . | . . . . . Highest-Rated Group . | . . . . . Highest-Rated Ally . | . . . . . Total Orders . | . . . . . Ally Attacks . | . . . . . Total Damage . | . . . . . Kills . | . . . . . Allies Corrupted . | . . . . . Allies Melted . | . . . . . Intel | -11 -10 -9 -9 -9 ------- Run | Yrd Mat Mat Min Exi Robot Analysis Total . | . . . . . Derelict Logs Recovered 3 | . . . 3 . Drone Launches . | . . . . . Drone Recoveries . | . . . . . Exploration | -11 -10 -9 -9 -9 ------------- Run | Yrd Mat Mat Min Exi Turns Passed 3669 | 47 1100 1313 872 337 Spaces Moved 2448 | 37 681 751 686 293 Core 11 | 11 . . . . Treads 9 | . 9 . . . Legs 19 | . 19 . . . Wheels 2409 | 26 653 751 686 293 Hover . | . . . . . Flight . | . . . . . Fastest Speed 50 | 50 95 110 115 115 Average Speed 114 | 83 115 114 115 115 Slowest Speed 320 | 100 320 155 115 115 Overloaded Moves . | . . . . . Propulsion Burnouts . | . . . . . Robots Hopped . | . . . . . Cave-ins Triggered . | . . . . . Exploration Rate (%) 70 | 3 95 76 98 79 Regions Visited 4 Branch Regions 2 Pre-discovered Areas . | . . . . . Known Exits Taken . | . . . . . Unknown Exits Taken 4 | 1 1 1 1 . Scrap Searched 4 | . . . 4 . Spaces Dug 3 | . 3 . . . Terrain Destroyed 3 | . 3 . . . Melee . | . . . . . Projectile 3 | . 3 . . . AOE . | . . . . . Terrain Rammed . | . . . . . Walls Destroyed . | . . . . . Machines Disabled . | . . . . . Actions | -11 -10 -9 -9 -9 --------- Run | Yrd Mat Mat Min Exi Total 2929 | 51 839 1017 729 293 Wait 172 | . 43 119 10 . Move 2444 | 36 680 750 685 293 Hop . | . . . . . Pick Up 60 | 7 19 25 9 . Fast Attach 1 | 1 . . . . Attach 33 | 5 9 17 2 . Detach 1 | . . 1 . . Swap 25 | 2 13 9 1 . Drop 14 | . 3 8 3 . Fire 179 | . 72 88 19 . Melee . | . . . . . Ram . | . . . . . Kick . | . . . . . Crush . | . . . . . Escape Stasis . | . . . . . Rewire . | . . . . . Trap . | . . . . . Miscellaneous . | . . . . . Route ------- -11/Scrapyard -10/Materials (discovered 5 exits: *Mat x3 / [*Min x2]) -9/Materials (discovered 3 exits: [*Mat x2] / [*Min]) -9/Mines (discovered 3 exits: [*Mat x2] / *Exi) -9/Exiles History --------- Turn | Location | Event 9 | -11/Scrapyard | Discovered new exit (range 16) 48 | -11/Scrapyard | Entered Materials 105 | -10/Materials | Discovered new exit (range 8) 311 | -10/Materials | Build established: Mutant 313 | -10/Materials | Discovered new exit (range 10) 471 | -10/Materials | Discovered new exit (range 10) 524 | -10/Materials | Lost 3 parts (1p2n) 586 | -10/Materials | Lost 3 parts (1n2w) 811 | -10/Materials | Discovered new exit (range 16) 901 | -10/Materials | Build established: Scavenger-Mutant 997 | -10/Materials | Discovered new exit (range 14) 1148 | -10/Materials | Entered another Materials area 1148 | -9/Materials | Evolved 2 slots: Utility x1, Weapon x1 1430 | -9/Materials | Build established: Scavenger-Skirmisher 1537 | -9/Materials | Discovered new exit (range 13) 1876 | -9/Materials | Discovered new exit (range 13) 2236 | -9/Materials | Discovered new exit (range 8) 2371 | -9/Materials | Repaired Arm. Wheel 2461 | -9/Materials | Entered Mines 2513 | -9/Mines | Deemed a non-threat by the Exiles lab entrance 2513 | -9/Mines | Discovered new exit (range 5) 2590 | -9/Mines | Build established: Scavenger-Tank 2626 | -9/Mines | Learned location of 1 exit from Materials 2638 | -9/Mines | Joined a pair of Derelicts in attacking an 0b10 outpost 2835 | -9/Mines | Learned location of 1 exit from Materials 3109 | -9/Mines | Learned 2 Materials zone layouts 3125 | -9/Mines | Discovered new exit (range 8) 3137 | -9/Mines | Discovered new exit (range 7) 3170 | -9/Mines | Core integrity fell below 50% 3333 | -9/Mines | Entered Exiles 3333 | -9/Exiles | Found Exiles lab abandoned 3670 | -9/Exiles | Self-destructed Last Messages --------------- >>Record! "BIN-BYE" To the spacelab! 03457_ 6%B&LJGQAY XOE AN>Record! "DEC-BYE" For the record, I voted to stay and build some amazing defenses, but HEX said this is a lab, not a battlefield. Anyway, you're too late, MAIN.C, Warlord sends his regards. 03484_ Connecting with EX-Vault Access... 03489_ Connecting with EX-Prototypes Database... 03504_ Connecting with HEX's Terminal... >>Record! "HEX-BYE" To anyone looking for us: Don't. 03527_ System corrupted: Substantial component data lost. 03569_ Connecting with EX-Message Board... >>Record! "MSG999999-FU" MAIN.C you're pretty crappy as far as evil overlords go. Imprinter is probably going to wreck your life and you're too stupid to see it coming. 03594_ DFAY H1U8OX%DT4, SVX&UWUQV43M9L3 03640_ Q|N|:#:,JV4MGY,LLTCRR#UZ Map ----- +----------------------------------------------------+ | ??????????????????????????????????????????????#" | | ??????????????????????????????????????????????#""" | | ??????????????????????????????????????????????#"" | | ??????????????????????????????????????????????#" | | ??????????????????????????????????????????????#""" | | ??????????????????????????????????????????????## | | ???????????????????????????????????????????????#"" | | ???????????????????????????????????????????????##" | | ????????????????????????????????????????????????## | | ?????????????????????????????????????????????????# | | ?????????????????????????????????????????????????? | | ?????????????????????????????????????????????????? | | ?????????????????????????????????????????????????? | | ?????????????????????????????????????????????????? | | ?????????????????????????????????????????????????? | | ?????????????????????????#####?????????????????### | | ???????????????????????#"""""""??????"""""???#"""" | | ????????????????????????"" ""????"""""""????"""" | | ???????????????????????#" "#??"""""" "#??#" " | | ????????????????????????"" ""#""#""" """????"" | | ????????????????????????"" "?#""#"" ""????"" | | ??????????????????########"""###""###"""########"" | | ??????????????????#"""" "" """"""" """""""" | | ??????????????????#" """""" """"""" | | ??????????????????#""" | | ??????????????????#"""" @ | | ??????????????????#"" | | ??????????????????#""" "" | | ??????????????????#"" """ """""" " """"" | | ??????????????????########"""########"""###""###"" | | ????????????????????????"" "?????"" ""#""#"" | | ????????????????????????""" """????""" ""#""#""" | | ???????????????????????#" """ "#??#" """"""""#" | | ????????????????????????"""""""????"""""""????"""" | | ????????????????????????"""""""????""""""?????"""" | | ????????????????????????????????????????????????## | | ?????????????????????????????????????????????????? | | ?????????????????????????????????????????????????? | | ?????????????????????????????????????????????????? | | ?????????????????????????????????????????????????? | | | | | | | | | | | | | | | | | | | | | +----------------------------------------------------+ Best States ------------- Heat Dissipation 42 Energy Generation 14 Energy Capacity 265 Matter Stores 300 Matter Capacity 300 Sight Range 16 Terrain Scan Density 10 Armor Coverage 150 Evasion (%) 50 Recoil Reduction 1 Item Schematics ----------------- None Robot Schematics ------------------ None Fabricated ------------ Nothing Alien Tech Used ----------------- None Achievements -------------- None Challenges ------------ None Game ------ Seed CompositeMiningAccelerator Manual? 0 Play Time 00:59:46 Cumulative 32.9 hours Start 2025.01.13 @ 07:36:54 End 2025.01.14 @ 07:57:23 Sessions 3 Manual Loads 0 Difficulty Rogue Special Mode None Game No. 43 Rogue 40 Adventurer 0 Explorer 3 Win Type - Total 0 Types 0/0/0/0/0/0/0/0/0 Lore% 8 Gallery% 28 Achievement% 25 Wizard Run 0 Options --------- Layout 0 ASCII 0 Keyboard 0 Movement Numpad Keybinds 0 Fullscreen 0 Font 16/SmallcapsGlow Map View 88x55 Zoom Use 0% Tactical HUD 1 Map Filters NONE Filters NONE Steam 1 RUN: e4e41229-c49c-4534-9431-f8849fcab061